[Event "Titled Tuesday Blitz May 16 Early 2023"]
[White "Marcziter, Dmitrii"]
[Black "Grossboss19"]
[WhiteFideId "13900765"]
[WhiteElo "2162"]
[BlackElo "2433"]
[Result "1-0"]
[Round "11"]
[TimeControl "180+2"]
[Date "2023.05.16"]
[WhiteClock "0:00:32"]
[BlackClock "0:00:04"]

1. d4 {[%clk 0:03:00]}  Nf6 {[%clk 0:02:53]} 2. Nf3 {[%clk 0:02:59]}  g6 {[%clk 0:02:48]} 3. c4 {[%clk 0:02:59]}  Bg7 {[%clk 0:02:48]} 4. g3 {[%clk 0:02:59]}  O-O {[%clk 0:02:48]} 5. Bg2 {[%clk 0:03:00]}  c6 {[%clk 0:02:46]} 6. Nc3 {[%clk 0:02:57]}  d5 {[%clk 0:02:45]} 7. cxd5 {[%clk 0:02:57]}  cxd5 {[%clk 0:02:46]} 8. Ne5 {[%clk 0:02:55]}  e6 {[%clk 0:02:31]} 9. O-O {[%clk 0:02:53]}  Nfd7 {[%clk 0:02:28]} 10. Nf3 {[%clk 0:02:50]}  Nc6 {[%clk 0:02:27]} 11. Bf4 {[%clk 0:02:43]}  a6 {[%clk 0:02:15]} 12. Qd2 {[%clk 0:02:35]}  b5 {[%clk 0:02:12]} 13. Rac1 {[%clk 0:02:33]}  Bb7 {[%clk 0:02:12]} 14. Bh6 {[%clk 0:02:30]}  Rc8 {[%clk 0:02:07]} 15. Bxg7 {[%clk 0:02:30]}  Kxg7 {[%clk 0:02:08]} 16. e4 {[%clk 0:02:25]}  Nb6 {[%clk 0:01:45]} 17. e5 {[%clk 0:02:22]}  Nc4 {[%clk 0:01:43]} 18. Qe2 {[%clk 0:02:21]}  Qb6 {[%clk 0:01:29]} 19. Rfd1 {[%clk 0:02:20]}  Ne7 {[%clk 0:01:22]} 20. b3 {[%clk 0:02:18]}  Na5 {[%clk 0:01:18]} 21. h4 {[%clk 0:02:12]}  Rc7 {[%clk 0:01:18]} 22. Nb1 {[%clk 0:02:10]}  Rfc8 {[%clk 0:01:17]} 23. Qd2 {[%clk 0:02:04]}  Ng8 {[%clk 0:01:13]} 24. h5 {[%clk 0:01:58]}  Nc6 {[%clk 0:01:05]} 25. Nc3 {[%clk 0:01:45]}  Nce7 {[%clk 0:00:59]} 26. Ne2 {[%clk 0:01:41]}  Nf5 {[%clk 0:00:48]} 27. g4 {[%clk 0:01:35]}  Nfe7 {[%clk 0:00:45]} 28. Nf4 {[%clk 0:01:24]}  Rxc1 {[%clk 0:00:38]} 29. Rxc1 {[%clk 0:01:23]}  Rxc1+ {[%clk 0:00:37]} 30. Qxc1 {[%clk 0:01:23]}  Nc6 {[%clk 0:00:38]} 31. Ne2 {[%clk 0:01:19]}  Qa5 {[%clk 0:00:33]} 32. Qf4 {[%clk 0:01:11]}  Nd8 {[%clk 0:00:19]} 33. Ng3 {[%clk 0:00:58]}  h6 {[%clk 0:00:18]} 34. g5 {[%clk 0:00:53]}  hxg5 {[%clk 0:00:11]} 35. Nxg5 {[%clk 0:00:53]}  Qa3 {[%clk 0:00:10]} 36. h6+ {[%clk 0:00:50]}  Kh8 {[%clk 0:00:09]} 37. Nxf7+ {[%clk 0:00:47]}  Nxf7 {[%clk 0:00:10]} 38. Qxf7 {[%clk 0:00:47]}  Qe7 {[%clk 0:00:11]} 39. Qxg6 {[%clk 0:00:45]}  Bc6 {[%clk 0:00:11]} 40. Nh5 {[%clk 0:00:43]}  Be8 {[%clk 0:00:11]} 41. Qg7+ {[%clk 0:00:38]}  Qxg7 {[%clk 0:00:08]} 42. Nxg7 {[%clk 0:00:36]}  Kh7 {[%clk 0:00:08]} 43. Nxe8 {[%clk 0:00:36]}  Nxh6 {[%clk 0:00:09]} 44. Nc7 {[%clk 0:00:35]}  Nf5 {[%clk 0:00:09]} 45. Nxe6 {[%clk 0:00:34]}  Kg6 {[%clk 0:00:07]} 46. Bxd5 {[%clk 0:00:33]}  Nh4 {[%clk 0:00:06]} 47. Be4+ {[%clk 0:00:33]}  Kf7 {[%clk 0:00:05]} 48. Nc7 {[%clk 0:00:33]}  Ke7 {[%clk 0:00:04]} 49. Nxa6 {[%clk 0:00:32]} 1-0


[Site "https://www.chess.com"]

[Event "Titled Tuesday Blitz May 16 Early 2023"]
[White "Prieto Aranguren, Alain"]
[Black "Weetik, Vjacheslav"]
[WhiteFideId "2268906"]
[BlackFideId "4153472"]
[WhiteElo "2209"]
[BlackElo "2469"]
[Result "0-1"]
[Round "11"]
[TimeControl "180+2"]
[Date "2023.05.16"]
[WhiteClock "0:01:59"]
[BlackClock "0:01:54"]

1. d4 {[%clk 0:02:57]}  Nf6 {[%clk 0:02:58]} 2. c4 {[%clk 0:02:56]}  g6 {[%clk 0:02:58]} 3. Nc3 {[%clk 0:02:56]}  Bg7 {[%clk 0:02:59]} 4. e4 {[%clk 0:02:56]}  d6 {[%clk 0:03:00]} 5. Be2 {[%clk 0:02:56]}  O-O {[%clk 0:03:00]} 6. Nf3 {[%clk 0:02:57]}  e5 {[%clk 0:03:00]} 7. dxe5 {[%clk 0:02:57]}  dxe5 {[%clk 0:03:00]} 8. Qxd8 {[%clk 0:02:57]}  Rxd8 {[%clk 0:03:01]} 9. Bg5 {[%clk 0:02:57]}  Re8 {[%clk 0:03:01]} 10. Nd5 {[%clk 0:02:56]}  Nxd5 {[%clk 0:03:01]} 11. cxd5 {[%clk 0:02:56]}  c6 {[%clk 0:03:02]} 12. Bc4 {[%clk 0:02:56]}  cxd5 {[%clk 0:03:02]} 13. Bxd5 {[%clk 0:02:56]}  Nd7 {[%clk 0:03:02]} 14. O-O {[%clk 0:02:51]}  h6 {[%clk 0:03:01]} 15. Be3 {[%clk 0:02:50]}  Nf6 {[%clk 0:02:59]} 16. Rfd1 {[%clk 0:02:48]}  Nxd5 {[%clk 0:02:57]} 17. Rxd5 {[%clk 0:02:42]}  b6 {[%clk 0:02:53]} 18. a4 {[%clk 0:02:40]}  Bb7 {[%clk 0:02:52]} 19. Rb5 {[%clk 0:02:34]}  Bxe4 {[%clk 0:02:50]} 20. a5 {[%clk 0:02:34]}  Bd3 {[%clk 0:02:38]} 21. Rb3 {[%clk 0:02:27]}  e4 {[%clk 0:02:26]} 22. axb6 {[%clk 0:02:22]}  axb6 {[%clk 0:02:26]} 23. Raa3 {[%clk 0:02:16]}  Bc2 {[%clk 0:01:57]} 24. Nd4 {[%clk 0:01:59]}  Bxd4 {[%clk 0:01:54]} 0-1


[Site "https://www.chess.com"]

[Event "Titled Tuesday Blitz May 16 Early 2023"]
[White "Llanos, Guillermo"]
[Black "Seinw1"]
[WhiteFideId "100358"]
[WhiteElo "2225"]
[BlackElo "2531"]
[Result "0-1"]
[Round "11"]
[TimeControl "180+2"]
[Date "2023.05.16"]
[WhiteClock "0:00:54"]
[BlackClock "0:00:27"]

1. Nf3 {[%clk 0:02:54]}  Nf6 {[%clk 0:03:00]} 2. g3 {[%clk 0:02:53]}  g6 {[%clk 0:03:00]} 3. Bg2 {[%clk 0:02:53]}  Bg7 {[%clk 0:03:01]} 4. b3 {[%clk 0:02:53]}  O-O {[%clk 0:03:01]} 5. Bb2 {[%clk 0:02:53]}  d6 {[%clk 0:03:01]} 6. d4 {[%clk 0:02:53]}  Nbd7 {[%clk 0:02:59]} 7. O-O {[%clk 0:02:51]}  Re8 {[%clk 0:02:59]} 8. c4 {[%clk 0:02:50]}  c6 {[%clk 0:03:00]} 9. Nc3 {[%clk 0:02:49]}  e5 {[%clk 0:02:59]} 10. e4 {[%clk 0:02:49]}  Qc7 {[%clk 0:02:54]} 11. Qc2 {[%clk 0:02:49]}  b6 {[%clk 0:02:51]} 12. Rad1 {[%clk 0:02:48]}  Bb7 {[%clk 0:02:51]} 13. d5 {[%clk 0:02:41]}  cxd5 {[%clk 0:02:46]} 14. exd5 {[%clk 0:02:35]}  Rac8 {[%clk 0:02:39]} 15. Ng5 {[%clk 0:02:17]}  h6 {[%clk 0:02:35]} 16. Nh3 {[%clk 0:02:13]}  Nc5 {[%clk 0:02:28]} 17. f4 {[%clk 0:02:10]}  e4 {[%clk 0:02:20]} 18. f5 {[%clk 0:02:07]}  g5 {[%clk 0:02:14]} 19. Rde1 {[%clk 0:02:07]}  Nd3 {[%clk 0:02:10]} 20. Re2 {[%clk 0:01:53]}  Nxb2 {[%clk 0:02:09]} 21. Qxb2 {[%clk 0:01:53]}  Nxd5 {[%clk 0:01:57]} 22. cxd5 {[%clk 0:01:43]}  Bxc3 {[%clk 0:01:53]} 23. Qb1 {[%clk 0:01:44]}  Ba6 {[%clk 0:01:43]} 24. Rxe4 {[%clk 0:01:41]}  Bxf1 {[%clk 0:01:37]} 25. Bxf1 {[%clk 0:01:41]}  Rxe4 {[%clk 0:01:32]} 26. Qxe4 {[%clk 0:01:40]}  Bf6 {[%clk 0:01:25]} 27. Bd3 {[%clk 0:01:30]}  Qc1+ {[%clk 0:01:22]} 28. Kg2 {[%clk 0:01:30]}  Qb2+ {[%clk 0:01:14]} 29. Kf3 {[%clk 0:01:29]}  Qd4 {[%clk 0:01:06]} 30. Nf2 {[%clk 0:01:27]}  Qxe4+ {[%clk 0:01:00]} 31. Nxe4 {[%clk 0:01:27]}  Be5 {[%clk 0:01:01]} 32. Bc4 {[%clk 0:01:20]}  b5 {[%clk 0:00:55]} 33. Bxb5 {[%clk 0:01:19]}  Rc2 {[%clk 0:00:55]} 34. h4 {[%clk 0:01:15]}  gxh4 {[%clk 0:00:49]} 35. gxh4 {[%clk 0:01:15]}  Rxa2 {[%clk 0:00:48]} 36. Ba4 {[%clk 0:01:10]}  f6 {[%clk 0:00:39]} 37. Kg4 {[%clk 0:01:09]}  Kg7 {[%clk 0:00:32]} 38. Kh5 {[%clk 0:00:54]}  Re2 {[%clk 0:00:27]} 0-1


[Site "https://www.chess.com"]

[Event "Titled Tuesday Blitz May 16 Early 2023"]
[White "Hajiyev, Kanan"]
[Black "Dishman, Stephen"]
[WhiteFideId "13404148"]
[BlackFideId "403024"]
[WhiteElo "2103"]
[BlackElo "2204"]
[Result "0-1"]
[Round "11"]
[TimeControl "180+2"]
[Date "2023.05.16"]
[WhiteClock "0:00:17"]
[BlackClock "0:01:06"]

1. d4 {[%clk 0:03:00]}  d5 {[%clk 0:02:59]} 2. c4 {[%clk 0:03:00]}  c6 {[%clk 0:02:59]} 3. cxd5 {[%clk 0:03:01]}  cxd5 {[%clk 0:02:58]} 4. Nc3 {[%clk 0:03:01]}  Nf6 {[%clk 0:02:58]} 5. Nf3 {[%clk 0:03:01]}  Nc6 {[%clk 0:02:58]} 6. Bg5 {[%clk 0:03:01]}  Ne4 {[%clk 0:02:56]} 7. Bf4 {[%clk 0:03:01]}  Nxc3 {[%clk 0:02:50]} 8. bxc3 {[%clk 0:03:02]}  Bf5 {[%clk 0:02:47]} 9. Qb3 {[%clk 0:03:02]}  Qd7 {[%clk 0:02:45]} 10. e3 {[%clk 0:03:00]}  a6 {[%clk 0:02:42]} 11. Be2 {[%clk 0:02:56]}  h6 {[%clk 0:02:40]} 12. O-O {[%clk 0:02:54]}  e6 {[%clk 0:02:40]} 13. Qb6 {[%clk 0:02:52]}  Be7 {[%clk 0:02:31]} 14. c4 {[%clk 0:02:38]}  dxc4 {[%clk 0:02:21]} 15. Bxc4 {[%clk 0:02:39]}  O-O {[%clk 0:02:20]} 16. a4 {[%clk 0:02:36]}  Bd6 {[%clk 0:02:01]} 17. Bxd6 {[%clk 0:02:30]}  Qxd6 {[%clk 0:02:01]} 18. Ne5 {[%clk 0:02:23]}  Rfc8 {[%clk 0:01:53]} 19. Rfc1 {[%clk 0:02:18]}  Qc7 {[%clk 0:01:43]} 20. Qxc7 {[%clk 0:02:00]}  Rxc7 {[%clk 0:01:43]} 21. Bd3 {[%clk 0:01:16]}  Nxe5 {[%clk 0:01:40]} 22. Bxf5 {[%clk 0:01:15]}  Rxc1+ {[%clk 0:01:27]} 23. Rxc1 {[%clk 0:01:16]}  exf5 {[%clk 0:01:27]} 24. dxe5 {[%clk 0:01:16]}  Rd8 {[%clk 0:01:23]} 25. f4 {[%clk 0:01:12]}  Rd3 {[%clk 0:01:21]} 26. Kf2 {[%clk 0:01:03]}  Ra3 {[%clk 0:01:20]} 27. Rc8+ {[%clk 0:01:02]}  Kh7 {[%clk 0:01:19]} 28. Rc7 {[%clk 0:01:03]}  Kg6 {[%clk 0:01:17]} 29. Rxb7 {[%clk 0:01:01]}  Rxa4 {[%clk 0:01:17]} 30. Rb6+ {[%clk 0:00:59]}  Kh7 {[%clk 0:01:17]} 31. Rb7 {[%clk 0:00:51]}  Kg6 {[%clk 0:01:17]} 32. Rb6+ {[%clk 0:00:51]}  Kh7 {[%clk 0:01:18]} 33. Kf3 {[%clk 0:00:44]}  h5 {[%clk 0:01:15]} 34. Kg3 {[%clk 0:00:40]}  Ra3 {[%clk 0:01:10]} 35. Rxa6 {[%clk 0:00:29]}  Rxa6 {[%clk 0:01:09]} 36. Kh4 {[%clk 0:00:28]}  Kg6 {[%clk 0:01:08]} 37. Kg3 {[%clk 0:00:25]}  Ra2 {[%clk 0:01:07]} 38. h3 {[%clk 0:00:17]}  h4+ {[%clk 0:01:06]} 0-1


[Site "https://www.chess.com"]

[Event "Titled Tuesday Blitz May 16 Early 2023"]
[White "Shapiro, Viktor"]
[Black "littlepillow2010"]
[WhiteFideId "4175700"]
[WhiteElo "2152"]
[BlackElo "2329"]
[Result "0-1"]
[Round "11"]
[TimeControl "180+2"]
[Date "2023.05.16"]
[WhiteClock "0:00:05"]
[BlackClock "0:00:46"]

1. c4 {[%clk 0:00:58]}  e5 {[%clk 0:02:51]} 2. Nc3 {[%clk 0:00:58]}  Nf6 {[%clk 0:02:51]} 3. g3 {[%clk 0:00:59]}  d5 {[%clk 0:02:49]} 4. cxd5 {[%clk 0:00:59]}  Nxd5 {[%clk 0:02:50]} 5. Bg2 {[%clk 0:01:00]}  Nb6 {[%clk 0:02:50]} 6. Nf3 {[%clk 0:01:00]}  Nc6 {[%clk 0:02:51]} 7. d3 {[%clk 0:01:01]}  Be7 {[%clk 0:02:51]} 8. O-O {[%clk 0:01:01]}  O-O {[%clk 0:02:52]} 9. a3 {[%clk 0:01:01]}  Be6 {[%clk 0:02:52]} 10. b4 {[%clk 0:01:01]}  f6 {[%clk 0:02:50]} 11. Rb1 {[%clk 0:01:01]}  Rb8 {[%clk 0:02:48]} 12. Bd2 {[%clk 0:00:55]}  Nd5 {[%clk 0:02:47]} 13. Qc2 {[%clk 0:00:53]}  Qd7 {[%clk 0:02:43]} 14. Rfc1 {[%clk 0:00:52]}  Rfc8 {[%clk 0:02:41]} 15. Ne4 {[%clk 0:00:53]}  Nd8 {[%clk 0:02:37]} 16. Nc5 {[%clk 0:00:52]}  Bxc5 {[%clk 0:02:37]} 17. Qxc5 {[%clk 0:00:52]}  b6 {[%clk 0:02:37]} 18. Qc2 {[%clk 0:00:52]}  Nb7 {[%clk 0:02:15]} 19. e4 {[%clk 0:00:47]}  Ne7 {[%clk 0:02:13]} 20. Be3 {[%clk 0:00:47]}  c5 {[%clk 0:02:04]} 21. bxc5 {[%clk 0:00:44]}  bxc5 {[%clk 0:02:01]} 22. Nd2 {[%clk 0:00:33]}  Nc6 {[%clk 0:01:53]} 23. Nc4 {[%clk 0:00:28]}  Nd4 {[%clk 0:01:51]} 24. Qd1 {[%clk 0:00:29]}  Nd6 {[%clk 0:01:47]} 25. Nxd6 {[%clk 0:00:24]}  Qxd6 {[%clk 0:01:46]} 26. f4 {[%clk 0:00:16]}  Rb6 {[%clk 0:01:40]} 27. f5 {[%clk 0:00:14]}  Bf7 {[%clk 0:01:39]} 28. g4 {[%clk 0:00:14]}  Rcb8 {[%clk 0:01:31]} 29. Rxb6 {[%clk 0:00:14]}  axb6 {[%clk 0:01:25]} 30. g5 {[%clk 0:00:14]}  fxg5 {[%clk 0:01:15]} 31. Bxg5 {[%clk 0:00:13]}  Nb3 {[%clk 0:01:15]} 32. Rc2 {[%clk 0:00:12]}  c4 {[%clk 0:01:15]} 33. Bf1 {[%clk 0:00:10]}  Nd4 {[%clk 0:01:10]} 34. Rg2 {[%clk 0:00:10]}  c3 {[%clk 0:01:07]} 35. h4 {[%clk 0:00:09]}  c2 {[%clk 0:01:02]} 36. Rxc2 {[%clk 0:00:07]}  Nxc2 {[%clk 0:01:01]} 37. Qxc2 {[%clk 0:00:08]}  Qxa3 {[%clk 0:00:50]} 38. Qc7 {[%clk 0:00:08]}  Qc5+ {[%clk 0:00:50]} 39. Qxc5 {[%clk 0:00:08]}  bxc5 {[%clk 0:00:51]} 40. Be3 {[%clk 0:00:09]}  Rc8 {[%clk 0:00:51]} 41. Kf2 {[%clk 0:00:09]}  c4 {[%clk 0:00:49]} 42. d4 {[%clk 0:00:08]}  exd4 {[%clk 0:00:46]} 43. Bxd4 {[%clk 0:00:09]}  c3 {[%clk 0:00:46]} 44. Be3 {[%clk 0:00:07]}  c2 {[%clk 0:00:47]} 45. Bc1 {[%clk 0:00:08]}  Rd8 {[%clk 0:00:47]} 46. Be2 {[%clk 0:00:06]}  Rd1 {[%clk 0:00:46]} 47. Ba3 {[%clk 0:00:06]}  c1=Q {[%clk 0:00:46]} 48. Bxc1 {[%clk 0:00:06]}  Rxc1 {[%clk 0:00:46]} 49. e5 {[%clk 0:00:07]}  Rc5 {[%clk 0:00:46]} 50. e6 {[%clk 0:00:05]}  Rxf5+ {[%clk 0:00:46]} 0-1


[Site "https://www.chess.com"]

[Event "Titled Tuesday Blitz May 16 Early 2023"]
[White "Labussiere, Yago"]
[Black "Petrovic, Aleksa"]
[WhiteFideId "2186969"]
[BlackFideId "967629"]
[WhiteElo "2160"]
[BlackElo "2309"]
[Result "0-1"]
[Round "11"]
[TimeControl "180+2"]
[Date "2023.05.16"]
[WhiteClock "0:00:01"]
[BlackClock "0:00:20"]

1. c4 {[%clk 0:03:00]}  c6 {[%clk 0:02:57]} 2. d3 {[%clk 0:03:00]}  d5 {[%clk 0:02:57]} 3. cxd5 {[%clk 0:02:58]}  cxd5 {[%clk 0:02:57]} 4. Nf3 {[%clk 0:02:57]}  Nc6 {[%clk 0:02:56]} 5. g3 {[%clk 0:02:58]}  g6 {[%clk 0:02:55]} 6. Bg2 {[%clk 0:02:58]}  Bg7 {[%clk 0:02:55]} 7. O-O {[%clk 0:02:59]}  Nf6 {[%clk 0:02:56]} 8. Nc3 {[%clk 0:02:45]}  O-O {[%clk 0:02:52]} 9. Bg5 {[%clk 0:02:45]}  h6 {[%clk 0:02:49]} 10. Bxf6 {[%clk 0:02:44]}  Bxf6 {[%clk 0:02:50]} 11. d4 {[%clk 0:02:43]}  Bg4 {[%clk 0:02:44]} 12. e3 {[%clk 0:02:41]}  e6 {[%clk 0:02:40]} 13. h3 {[%clk 0:02:41]}  Bxf3 {[%clk 0:02:33]} 14. Bxf3 {[%clk 0:02:42]}  a6 {[%clk 0:02:32]} 15. Rc1 {[%clk 0:02:39]}  Rc8 {[%clk 0:02:20]} 16. Na4 {[%clk 0:02:38]}  Qe7 {[%clk 0:02:02]} 17. Nc5 {[%clk 0:02:36]}  h5 {[%clk 0:01:51]} 18. Qb3 {[%clk 0:02:30]}  Rc7 {[%clk 0:01:48]} 19. a3 {[%clk 0:02:20]}  Bxd4 {[%clk 0:01:47]} 20. Na4 {[%clk 0:01:35]}  Ba7 {[%clk 0:01:40]} 21. Nc3 {[%clk 0:01:23]}  d4 {[%clk 0:01:30]} 22. exd4 {[%clk 0:01:19]}  Nxd4 {[%clk 0:01:25]} 23. Qd1 {[%clk 0:01:18]}  Rd8 {[%clk 0:01:17]} 24. Kg2 {[%clk 0:01:18]}  h4 {[%clk 0:01:12]} 25. Ne4 {[%clk 0:01:13]}  hxg3 {[%clk 0:01:08]} 26. fxg3 {[%clk 0:01:11]}  Nf5 {[%clk 0:01:03]} 27. Rxc7 {[%clk 0:00:47]}  Qxc7 {[%clk 0:00:54]} 28. Qc1 {[%clk 0:00:38]}  Ne3+ {[%clk 0:00:48]} 29. Kh1 {[%clk 0:00:36]}  Qe5 {[%clk 0:00:33]} 30. Rg1 {[%clk 0:00:07]}  Nf5 {[%clk 0:00:28]} 31. Rg2 {[%clk 0:00:02]}  Be3 {[%clk 0:00:25]} 32. Qf1 {[%clk 0:00:02]}  Rd4 {[%clk 0:00:22]} 33. h4 {[%clk 0:00:01]}  Rxe4 {[%clk 0:00:22]} 34. Bxe4 {[%clk 0:00:01]}  Qxe4 {[%clk 0:00:23]} 35. Kh2 {[%clk 0:00:01]}  Nxh4 {[%clk 0:00:20]} 36. gxh4 {[%clk 0:00:01]}  Qxh4# {[%clk 0:00:20]} 0-1


[Site "https://www.chess.com"]

[Event "Titled Tuesday Blitz May 16 Early 2023"]
[White "Weber, Samuel"]
[Black "Dobre, Claudiu-Cristian"]
[WhiteFideId "12924008"]
[BlackFideId "1211854"]
[WhiteElo "2162"]
[BlackElo "2207"]
[Result "1-0"]
[Round "11"]
[TimeControl "180+2"]
[Date "2023.05.16"]
[WhiteClock "0:00:23"]
[BlackClock "0:00:01"]

1. b3 {[%clk 0:03:00]}  d5 {[%clk 0:02:46]} 2. Bb2 {[%clk 0:02:46]}  e6 {[%clk 0:02:36]} 3. Nf3 {[%clk 0:02:46]}  Nf6 {[%clk 0:02:36]} 4. e3 {[%clk 0:02:47]}  Be7 {[%clk 0:02:34]} 5. Be2 {[%clk 0:02:47]}  O-O {[%clk 0:02:34]} 6. O-O {[%clk 0:02:48]}  b6 {[%clk 0:02:34]} 7. c4 {[%clk 0:02:49]}  Bb7 {[%clk 0:02:34]} 8. Nc3 {[%clk 0:02:49]}  Nbd7 {[%clk 0:02:34]} 9. Rc1 {[%clk 0:02:49]}  a6 {[%clk 0:02:28]} 10. cxd5 {[%clk 0:02:49]}  exd5 {[%clk 0:02:27]} 11. Nd4 {[%clk 0:02:48]}  Re8 {[%clk 0:02:12]} 12. Nf5 {[%clk 0:02:48]}  Bf8 {[%clk 0:02:13]} 13. Bf3 {[%clk 0:02:48]}  Ne5 {[%clk 0:02:08]} 14. Be2 {[%clk 0:02:46]}  g6 {[%clk 0:02:05]} 15. Ng3 {[%clk 0:02:46]}  d4 {[%clk 0:01:59]} 16. exd4 {[%clk 0:02:41]}  Qxd4 {[%clk 0:01:59]} 17. Na4 {[%clk 0:02:40]}  Qd5 {[%clk 0:01:58]} 18. f3 {[%clk 0:02:36]}  b5 {[%clk 0:01:22]} 19. Nc3 {[%clk 0:02:32]}  Qd4+ {[%clk 0:01:15]} 20. Kh1 {[%clk 0:02:27]}  Nd3 {[%clk 0:01:15]} 21. Bxd3 {[%clk 0:02:17]}  Qxd3 {[%clk 0:01:15]} 22. Nce4 {[%clk 0:02:14]}  Nxe4 {[%clk 0:00:23]} 23. fxe4 {[%clk 0:02:12]}  c5 {[%clk 0:00:21]} 24. Rf3 {[%clk 0:02:08]}  Qd7 {[%clk 0:00:20]} 25. d3 {[%clk 0:02:07]}  Bg7 {[%clk 0:00:19]} 26. Bxg7 {[%clk 0:02:07]}  Kxg7 {[%clk 0:00:19]} 27. Rc2 {[%clk 0:02:07]}  Qd6 {[%clk 0:00:18]} 28. Rcf2 {[%clk 0:02:05]}  Re7 {[%clk 0:00:18]} 29. Rf6 {[%clk 0:01:52]}  Qe5 {[%clk 0:00:18]} 30. Qf1 {[%clk 0:01:44]}  Rf8 {[%clk 0:00:18]} 31. R6f4 {[%clk 0:01:34]}  Bc8 {[%clk 0:00:18]} 32. Qc1 {[%clk 0:01:25]}  Kg8 {[%clk 0:00:17]} 33. Nf1 {[%clk 0:01:18]}  Be6 {[%clk 0:00:17]} 34. Nd2 {[%clk 0:01:16]}  Rd8 {[%clk 0:00:17]} 35. Nf3 {[%clk 0:01:16]}  Qd6 {[%clk 0:00:17]} 36. Ng5 {[%clk 0:01:10]}  Qxd3 {[%clk 0:00:17]} 37. Nxe6 {[%clk 0:01:10]}  fxe6 {[%clk 0:00:17]} 38. Rf1 {[%clk 0:01:07]}  Red7 {[%clk 0:00:16]} 39. Qxc5 {[%clk 0:01:06]}  Qd6 {[%clk 0:00:15]} 40. Qg5 {[%clk 0:01:02]}  Qe7 {[%clk 0:00:14]} 41. Qe5 {[%clk 0:00:58]}  Rd6 {[%clk 0:00:13]} 42. h3 {[%clk 0:00:59]}  Qg7 {[%clk 0:00:13]} 43. Rf6 {[%clk 0:00:58]}  Qe7 {[%clk 0:00:11]} 44. Kh2 {[%clk 0:00:57]}  Rc6 {[%clk 0:00:10]} 45. R1f2 {[%clk 0:00:57]}  Rdc8 {[%clk 0:00:09]} 46. h4 {[%clk 0:00:54]}  Qc7 {[%clk 0:00:09]} 47. Qxc7 {[%clk 0:00:50]}  R8xc7 {[%clk 0:00:10]} 48. Rf8+ {[%clk 0:00:44]}  Kg7 {[%clk 0:00:10]} 49. Re8 {[%clk 0:00:43]}  b4 {[%clk 0:00:08]} 50. Rb8 {[%clk 0:00:35]}  a5 {[%clk 0:00:08]} 51. Rb5 {[%clk 0:00:35]}  Rc5 {[%clk 0:00:08]} 52. Rb6 {[%clk 0:00:35]}  Re5 {[%clk 0:00:08]} 53. Rf4 {[%clk 0:00:32]}  Rf7 {[%clk 0:00:08]} 54. Kg3 {[%clk 0:00:28]}  Rc7 {[%clk 0:00:08]} 55. Kh2 {[%clk 0:00:26]}  Rc2 {[%clk 0:00:08]} 56. Rb7+ {[%clk 0:00:26]}  Kh6 {[%clk 0:00:08]} 57. Rff7 {[%clk 0:00:26]}  Kh5 {[%clk 0:00:07]} 58. Rf4 {[%clk 0:00:17]}  h6 {[%clk 0:00:04]} 59. Rh7 {[%clk 0:00:18]}  g5 {[%clk 0:00:04]} 60. hxg5 {[%clk 0:00:17]}  Rxg5 {[%clk 0:00:04]} 61. Kh3 {[%clk 0:00:17]}  Rgxg2 {[%clk 0:00:04]} 62. Rh4+ {[%clk 0:00:16]}  Kg5 {[%clk 0:00:03]} 63. Rg7+ {[%clk 0:00:17]}  Kf6 {[%clk 0:00:03]} 64. Rxg2 {[%clk 0:00:18]}  Rxg2 {[%clk 0:00:02]} 65. Kxg2 {[%clk 0:00:19]}  Kg5 {[%clk 0:00:02]} 66. Rh3 {[%clk 0:00:19]}  h5 {[%clk 0:00:03]} 67. Rd3 {[%clk 0:00:20]}  Kf4 {[%clk 0:00:03]} 68. Rd6 {[%clk 0:00:20]}  e5 {[%clk 0:00:03]} 69. Ra6 {[%clk 0:00:21]}  Kxe4 {[%clk 0:00:03]} 70. Rxa5 {[%clk 0:00:21]}  h4 {[%clk 0:00:03]} 71. Rb5 {[%clk 0:00:22]}  Kd3 {[%clk 0:00:03]} 72. Rxb4 {[%clk 0:00:22]}  e4 {[%clk 0:00:03]} 73. Kh3 {[%clk 0:00:22]}  e3 {[%clk 0:00:04]} 74. Rb8 {[%clk 0:00:21]}  e2 {[%clk 0:00:04]} 75. Rd8+ {[%clk 0:00:22]}  Kc2 {[%clk 0:00:03]} 76. Re8 {[%clk 0:00:23]}  Kd2 {[%clk 0:00:01]} 77. Kxh4 {[%clk 0:00:23]} 1-0


[Site "https://www.chess.com"]

[Event "Titled Tuesday Blitz May 16 Early 2023"]
[White "Rose, Felix"]
[Black "Papayan, Oleg"]
[WhiteFideId "5105722"]
[BlackFideId "4193911"]
[WhiteElo "2039"]
[BlackElo "2171"]
[Result "0-1"]
[Round "11"]
[TimeControl "180+2"]
[Date "2023.05.16"]
[WhiteClock "0:00:00"]
[BlackClock "0:00:23"]

1. d4 {[%clk 0:03:00]}  Nf6 {[%clk 0:02:58]} 2. Nf3 {[%clk 0:02:58]}  d5 {[%clk 0:02:55]} 3. e3 {[%clk 0:02:56]}  c5 {[%clk 0:02:55]} 4. c3 {[%clk 0:02:49]}  Nc6 {[%clk 0:02:52]} 5. Bd3 {[%clk 0:02:48]}  Bg4 {[%clk 0:02:50]} 6. dxc5 {[%clk 0:02:48]}  e5 {[%clk 0:02:43]} 7. Bb5 {[%clk 0:02:37]}  e4 {[%clk 0:02:31]} 8. h3 {[%clk 0:02:34]}  Bh5 {[%clk 0:02:31]} 9. g4 {[%clk 0:02:05]}  Nxg4 {[%clk 0:02:31]} 10. Qa4 {[%clk 0:01:53]}  exf3 {[%clk 0:01:31]} 11. Bxc6+ {[%clk 0:01:52]}  bxc6 {[%clk 0:01:32]} 12. Qxc6+ {[%clk 0:01:50]}  Ke7 {[%clk 0:01:33]} 13. Qb7+ {[%clk 0:00:51]}  Ke8 {[%clk 0:01:30]} 14. Qc6+ {[%clk 0:00:50]}  Ke7 {[%clk 0:01:31]} 15. hxg4 {[%clk 0:00:37]}  Bxg4 {[%clk 0:01:31]} 16. e4 {[%clk 0:00:37]}  Rc8 {[%clk 0:01:10]} 17. Qb7+ {[%clk 0:00:14]}  Qc7 {[%clk 0:00:56]} 18. Qxd5 {[%clk 0:00:11]}  Qxc5 {[%clk 0:00:56]} 19. Qxc5+ {[%clk 0:00:09]}  Rxc5 {[%clk 0:00:57]} 20. Be3 {[%clk 0:00:10]}  Rb5 {[%clk 0:00:45]} 21. b4 {[%clk 0:00:08]}  a6 {[%clk 0:00:40]} 22. a4 {[%clk 0:00:08]}  Rb7 {[%clk 0:00:34]} 23. Rg1 {[%clk 0:00:09]}  h5 {[%clk 0:00:34]} 24. Nd2 {[%clk 0:00:09]}  g6 {[%clk 0:00:32]} 25. O-O-O {[%clk 0:00:08]}  Bg7 {[%clk 0:00:31]} 26. Bc5+ {[%clk 0:00:07]}  Ke6 {[%clk 0:00:30]} 27. Kc2 {[%clk 0:00:06]}  Rc8 {[%clk 0:00:30]} 28. Rg3 {[%clk 0:00:05]}  a5 {[%clk 0:00:24]} 29. Nxf3 {[%clk 0:00:00]}  axb4 {[%clk 0:00:23]} 0-1


[Site "https://www.chess.com"]